bitfinex/quotes_BTCUSD_20251029
["timestamp","ask_amount","ask_price","bid_price","bid_amount"]
[1761770000481,0.72675222,111400.0,111390.0,0.03042625]
[1761770000926,0.72775222,111400.0,111390.0,0.03042625]
[1761770001148,3.72775222,111400.0,111390.0,0.03042625]
[1761770007359,0.17956545,111380.0,111370.0,1e-08]
[1761770007576,0.23674545,111380.0,111370.0,1e-08]
[1761770007815,0.28632545,111380.0,111370.0,1e-08]
[1761770008500,0.33668239,111380.0,111370.0,1e-08]
[1761770008745,0.28632545,111380.0,111370.0,1e-08]
[1761770009438,0.28632545,111380.0,111370.0,0.00200001]
[1761770009673,0.29539655,111380.0,111370.0,0.00200001]
[1761770011301,0.17956545,111380.0,111370.0,0.06378001]
[1761770011507,0.52056545,111380.0,111370.0,0.06378001]
[1761770011722,0.55070545,111380.0,111370.0,0.06378001]
[1761770012358,0.52056545,111380.0,111370.0,0.28454158]
[1761770012556,0.52056545,111380.0,111370.0,0.10296001]
[1761770012760,0.51956545,111380.0,111370.0,0.10296001]
[1761770013445,0.51956545,111380.0,111370.0,0.10396001]
[1761770013871,0.51956545,111380.0,111370.0,0.06278001]
[1761770014070,0.51956545,111380.0,111370.0,0.10396001]
[1761770014285,0.17956545,111380.0,111370.0,0.28354158]
[1761770014710,0.17956545,111380.0,111370.0,0.10396001]
[1761770016820,0.17956545,111380.0,111370.0,0.25196001]
[1761770017032,0.17956545,111380.0,111370.0,0.43154158]
[1761770017878,0.17956545,111380.0,111370.0,0.25196001]
[1761770018084,0.17956545,111380.0,111370.0,0.43154158]
[1761770020987,0.17956545,111380.0,111370.0,0.25196001]
[1761770021819,0.17956545,111380.0,111370.0,0.39036158]
[1761770022027,0.17956545,111380.0,111370.0,0.43154158]
[1761770022958,0.17956545,111380.0,111370.0,0.39036158]
[1761770023206,0.17956545,111380.0,111370.0,0.25196001]
[1761770024976,0.17956545,111380.0,111370.0,0.21078001]
[1761770025389,0.17956545,111380.0,111370.0,0.39036158]
[1761770025578,0.17956545,111380.0,111370.0,0.43154158]
[1761770027123,0.17956545,111380.0,111370.0,0.25196001]
[1761770027946,0.21152545,111380.0,111370.0,0.21078001]
[1761770029198,0.21152545,111380.0,111370.0,0.39036158]
[1761770029841,0.17956545,111380.0,111370.0,0.39036158]
[1761770030438,0.21152545,111380.0,111370.0,0.21078001]
[1761770030659,0.17956545,111380.0,111370.0,0.43154158]
[1761770033904,0.17956398,111390.0,111380.0,0.17956545]
[1761770034112,0.17956398,111390.0,111380.0,0.28357545]
[1761770034335,0.17956398,111390.0,111380.0,0.43157545]
[1761770035137,0.17956398,111390.0,111380.0,0.43257545]
[1761770035997,0.17956398,111390.0,111380.0,0.25301]
[1761770036688,0.17956398,111390.0,111380.0,0.21183]
[1761770036887,0.21152398,111390.0,111380.0,0.21183]
[1761770037736,0.24929398,111390.0,111380.0,0.21183]
[1761770038588,0.29789398,111390.0,111380.0,0.21183]
[1761770039344,0.24929398,111390.0,111380.0,0.21183]
[1761770039762,0.29789398,111390.0,111380.0,0.21183]
[1761770039960,0.33870106,111390.0,111380.0,0.21183]
[1761770040338,0.29789398,111390.0,111380.0,0.21183]
[1761770040538,0.24929398,111390.0,111380.0,0.21183]
[1761770041626,0.29789398,111390.0,111380.0,0.149]
[1761770042054,0.63789398,111390.0,111380.0,0.149]
[1761770042906,3.72771299,111390.0,111380.0,0.001]
[1761770043136,3.817532,111390.0,111380.0,0.001]
[1761770044202,3.82595653,111390.0,111380.0,0.001]
[1761770044412,3.8501567,111390.0,111380.0,0.001]
[1761770044624,0.17956545,111380.0,111370.0,1e-08]
[1761770044835,0.29789545,111380.0,111370.0,1e-08]
[1761770045280,0.3220366,111380.0,111370.0,1e-08]
[1761770045966,0.3220366,111380.0,111370.0,0.00100001]
[1761770046883,0.41185561,111380.0,111370.0,0.00100001]
[1761770049395,0.38771446,111380.0,111370.0,0.00100001]
[1761770051086,0.24929545,111380.0,111370.0,0.06284001]
[1761770051292,0.29741545,111380.0,111370.0,0.03022001]
[1761770051706,0.29741545,111380.0,111370.0,0.00100001]
[1761770054628,0.29741545,111380.0,111370.0,0.02855001]
[1761770054629,0.24903545,111380.0,111370.0,0.02855001]
[1761770054840,0.29489545,111380.0,111370.0,0.00100001]
[1761770055443,0.31714547,111380.0,111370.0,0.00100001]
[1761770060666,3.31714547,111380.0,111370.0,0.00100001]
[1761770061800,3.40696448,111380.0,111370.0,0.00100001]
[1761770062241,3.40796448,111380.0,111370.0,1e-08]
[1761770066596,3.38571446,111380.0,111370.0,1e-08]
[1761770071383,3.40996319,111380.0,111370.0,1e-08]
[1761770071590,3.41838605,111380.0,111370.0,1e-08]
[1761770071804,3.41838612,111380.0,111370.0,1e-08]
[1761770072023,3.40996319,111380.0,111370.0,1e-08]
[1761770072232,3.4997822,111380.0,111370.0,1e-08]
[1761770072408,3.50820611,111380.0,111370.0,1e-08]
[1761770072612,3.48395738,111380.0,111370.0,1e-08]
[1761770072815,3.37169342,111380.0,111370.0,1e-08]
[1761770073024,3.37169338,111380.0,111370.0,1e-08]
[1761770079117,3.71169338,111380.0,111370.0,1e-08]
[1761770079348,3.73595885,111380.0,111370.0,1e-08]
[1761770079563,3.82577786,111380.0,111370.0,1e-08]
[1761770079974,3.8257791,111380.0,111370.0,1e-08]
[1761770082709,3.85813306,111380.0,111370.0,1e-08]
[1761770083325,3.85812459,111380.0,111370.0,1e-08]
[1761770083559,3.76830558,111380.0,111370.0,1e-08]
[1761770091960,3.86283558,111380.0,111370.0,1e-08]
[1761770092176,3.76830558,111380.0,111370.0,1e-08]
[1761770096848,3.74404858,111380.0,111370.0,1e-08]
[1761770097062,3.83386759,111380.0,111370.0,1e-08]
[1761770099815,3.91858081,111380.0,111370.0,1e-08]
[1761770100691,3.91858051,111380.0,111370.0,1e-08]
[1761770100895,3.66854007,111380.0,111370.0,1e-08]
[1761770101104,3.69869007,111380.0,111370.0,1e-08]
[1761770102000,0.17958157,111370.0,111360.0,1e-08]
[1761770102229,3.71435619,111370.0,111360.0,1e-08]
[1761770102921,3.80426589,111370.0,111360.0,1e-08]
[1761770103157,3.80526589,111370.0,111360.0,1e-08]
[1761770104896,3.80426589,111370.0,111360.0,1e-08]
[1761770105314,3.80626589,111370.0,111360.0,1e-08]
[1761770109597,3.80626241,111370.0,111360.0,1e-08]
[1761770110934,3.72178952,111370.0,111360.0,1e-08]
[1761770112029,3.69752418,111370.0,111360.0,1e-08]
[1761770117557,3.72177496,111370.0,111360.0,1e-08]
[1761770117772,3.68559268,111370.0,111360.0,1e-08]
[1761770118005,3.65323872,111370.0,111360.0,1e-08]
[1761770118414,3.64481739,111370.0,111360.0,1e-08]
[1761770118828,3.64281739,111370.0,111360.0,1e-08]
[1761770119356,3.7346364,111370.0,111360.0,1e-08]
[1761770121913,3.71038562,111370.0,111360.0,1e-08]
[1761770122122,3.7346364,111370.0,111360.0,1e-08]
[1761770123193,3.71038562,111370.0,111360.0,1e-08]
[1761770123734,3.7346364,111370.0,111360.0,1e-08]
[1761770124166,3.7346364,111370.0,111360.0,0.00320092]
[1761770125255,3.77541169,111370.0,111360.0,0.00320092]
[1761770125887,3.68559268,111370.0,111360.0,0.00320092]
[1761770126765,3.60974872,111370.0,111360.0,0.00320092]
[1761770127437,3.64481739,111370.0,111360.0,0.00320092]
[1761770130675,3.60132739,111370.0,111360.0,0.00320092]
[1761770131342,3.64481739,111370.0,111360.0,0.00320092]
[1761770131777,3.4872576,111370.0,111360.0,0.11532092]
[1761770132229,0.54099343,111370.0,111360.0,0.11532092]
[1761770132442,0.52158157,111370.0,111360.0,0.29491862]
[1761770132677,0.52158157,111370.0,111360.0,0.32191625]
[1761770133130,0.51958157,111370.0,111360.0,0.32191625]
[1761770133585,0.51958157,111370.0,111360.0,0.32291625]
[1761770133795,0.51958157,111370.0,111360.0,0.32191625]
[1761770134224,0.51958157,111370.0,111360.0,0.32491625]
[1761770134450,0.17956545,111380.0,111360.0,0.32491625]
[1761770134690,0.51956545,111380.0,111370.0,0.29170157]
[1761770135356,0.51956545,111380.0,111370.0,0.38152058]
[1761770135585,0.34,111380.0,111370.0,0.38152058]
[1761770135810,0.18854144,111390.0,111380.0,0.17956545]
[1761770136042,0.20788427,111400.0,111390.0,0.17954933]
[1761770136259,0.18863904,111400.0,111390.0,0.11212]
[1761770136510,0.18863904,111400.0,111390.0,0.29166933]
[1761770136730,0.18863904,111400.0,111390.0,0.41102706]
[1761770136731,0.17966238,111400.0,111390.0,0.41102706]
[1761770137152,0.17966238,111400.0,111390.0,0.23147773]
[1761770137394,0.17966238,111400.0,111390.0,0.23247773]
[1761770137608,0.17966238,111400.0,111390.0,0.23147773]
[1761770137824,0.00012917,111400.0,111390.0,0.41102706]
[1761770138060,0.00012917,111400.0,111390.0,0.82800768]
[1761770138283,0.00012917,111400.0,111390.0,0.86418996]
[1761770139405,0.00012917,111400.0,111390.0,0.86618996]
[1761770139624,0.00012917,111400.0,111390.0,0.86518996]
[1761770139859,0.00012917,111400.0,111390.0,0.86318996]
[1761770140069,0.00012917,111400.0,111390.0,0.86918996]
[1761770140454,0.00012917,111400.0,111390.0,0.86818996]
[1761770140840,0.00012917,111400.0,111390.0,0.87018996]
[1761770141044,0.00012917,111400.0,111390.0,0.45420934]
[1761770141281,0.00012917,111400.0,111390.0,0.41802706]
[1761770141840,0.00012917,111400.0,111390.0,0.41302706]
[1761770142039,0.00012917,111400.0,111390.0,0.41102706]
[1761770142308,0.00012917,111400.0,111390.0,0.41802706]
[1761770142444,0.00012917,111400.0,111390.0,0.41402706]
[1761770143017,0.00012917,111400.0,111390.0,0.41602706]
[1761770143216,0.00012917,111400.0,111390.0,0.41202706]
[1761770143638,0.00012917,111400.0,111390.0,0.41602706]
[1761770148652,0.00012917,111400.0,111390.0,0.56402706]
[1761770149710,0.00012917,111400.0,111390.0,0.56119278]
[1761770154175,0.00012917,111400.0,111390.0,0.59161903]
[1761770157005,0.19157931,111420.0,111410.0,0.06138]
[1761770157238,0.19166551,111420.0,111410.0,0.10767]
[1761770157450,0.22293551,111420.0,111410.0,0.06349413]
[1761770157673,3.69907452,111420.0,111410.0,0.00211413]
[1761770157889,3.72674072,111420.0,111410.0,0.00211413]
[1761770158929,3.72774072,111420.0,111410.0,0.00211413]
[1761770159556,3.72774072,111420.0,111410.0,0.00311413]
[1761770159758,3.72774072,111420.0,111410.0,0.00211413]
[1761770160383,3.79370372,111420.0,111410.0,0.00211413]
[1761770161222,3.8179545,111420.0,111410.0,0.00211413]
[1761770164274,3.7519915,111420.0,111410.0,0.00211413]
[1761770164920,3.75202214,111420.0,111410.0,0.00211413]
[1761770166390,3.59163235,111420.0,111410.0,0.06928413]
[1761770166592,3.59363235,111420.0,111410.0,0.00211413]
[1761770166801,3.59363235,111420.0,111410.0,0.03532413]
[1761770167019,3.61788313,111420.0,111410.0,0.03532413]
[1761770167227,3.27788313,111420.0,111410.0,0.03532413]
[1761770167691,3.61788313,111420.0,111410.0,0.03532413]
[1761770168884,3.61788313,111420.0,111410.0,0.00211413]
[1761770169091,3.61788313,111420.0,111410.0,0.06656413]
[1761770169830,3.61788313,111420.0,111410.0,0.11436413]
[1761770170044,3.61788313,111420.0,111410.0,0.06656413]
[1761770170281,0.54504235,111420.0,111410.0,0.11436413]
[1761770171136,0.54504235,111420.0,111410.0,0.06656413]
[1761770171137,0.58794235,111420.0,111410.0,0.06656413]
[1761770171347,0.58794235,111420.0,111410.0,0.00211413]
[1761770171348,0.58694235,111420.0,111410.0,0.00211413]
[1761770171577,0.83715115,111420.0,111390.0,0.17842625]
[1761770171786,3.57585321,111400.0,111390.0,0.17842625]
[1761770172002,3.60355005,111400.0,111390.0,0.17842625]
[1761770172421,3.60355005,111400.0,111390.0,0.17886065]
[1761770173252,3.59514524,111400.0,111390.0,0.17886065]
[1761770173456,3.59514524,111400.0,111390.0,0.21011065]
[1761770173662,3.59514524,111400.0,111390.0,0.17886065]
[1761770174259,3.59514524,111400.0,111390.0,0.17986065]
[1761770174440,3.64065524,111400.0,111390.0,0.17986065]
[1761770175024,3.64065524,111400.0,111390.0,0.03186065]
[1761770175825,3.59514524,111400.0,111390.0,0.03186065]
[1761770176035,3.64065524,111400.0,111390.0,0.03186065]
[1761770176152,3.59514524,111400.0,111390.0,0.06311065]
[1761770176596,3.59614524,111400.0,111390.0,0.06311065]
[1761770177245,3.59614524,111400.0,111390.0,0.06211065]
[1761770177430,3.73147425,111400.0,111390.0,0.03086065]
[1761770177648,3.73247425,111400.0,111390.0,0.03086065]
[1761770178082,3.68696425,111400.0,111390.0,0.06211065]
[1761770178610,3.59714524,111400.0,111390.0,0.09447065]
[1761770180989,3.54082524,111400.0,111390.0,0.14217065]
[1761770181206,0.53160769,111400.0,111390.0,0.14217065]
[1761770181433,0.53160769,111400.0,111390.0,0.15885703]
[1761770181887,0.53060769,111400.0,111390.0,0.15885703]
[1761770182343,0.53060769,111400.0,111390.0,0.15885644]
[1761770183430,0.52960769,111400.0,111390.0,0.15885644]
[1761770183640,0.52960769,111400.0,111390.0,0.15985644]
[1761770184061,0.51024121,111400.0,111390.0,0.15985644]
[1761770184303,0.52961715,111400.0,111390.0,0.15985644]
[1761770184839,0.51024121,111400.0,111390.0,0.15985644]
[1761770185045,0.17024121,111400.0,111390.0,0.15985644]
[1761770186734,0.17953321,111400.0,111390.0,0.57722478]
[1761770188116,0.17953321,111400.0,111390.0,0.39767545]
[1761770188575,0.17953321,111400.0,111390.0,0.57722478]
[1761770189981,0.15256514,111400.0,111390.0,0.39767545]
[1761770190201,0.08514496,111400.0,111390.0,0.39767545]
[1761770191078,0.08514496,111400.0,111390.0,0.39667545]
[1761770191321,0.08514496,111400.0,111390.0,0.39967545]
[1761770195095,0.08514496,111400.0,111390.0,0.57922478]
[1761770195713,0.08514496,111400.0,111390.0,0.39967545]
[1761770195925,0.09860995,111400.0,111390.0,0.30985644]
[1761770196138,0.08514496,111400.0,111390.0,0.30985644]
[1761770197643,0.08514496,111400.0,111390.0,0.48940577]
[1761770197857,0.17953321,111400.0,111390.0,0.57922478]
[1761770198062,0.17953155,111410.0,111390.0,0.57922478]
[1761770198293,0.17953155,111410.0,111400.0,0.11194]
[1761770198507,0.17953155,111410.0,111400.0,0.12884297]
[1761770200032,0.17953155,111410.0,111400.0,0.30837618]
[1761770201999,0.17953155,111410.0,111400.0,0.30937618]
[1761770202866,0.17953155,111410.0,111400.0,0.31137618]
[1761770203924,0.53897266,111420.0,111410.0,0.17951709]
[1761770204136,0.53897266,111420.0,111410.0,0.30814288]
[1761770204351,0.53897266,111420.0,111410.0,0.27662579]
[1761770205409,0.53897266,111420.0,111410.0,0.45614288]
[1761770206270,0.19897266,111420.0,111410.0,0.45614288]
[1761770206901,0.17958718,111420.0,111410.0,0.45614288]
[1761770212161,8.62e-05,111420.0,111410.0,0.54596189]
[1761770212398,0.17958718,111420.0,111410.0,0.54596189]
[1761770212613,8.62e-05,111420.0,111410.0,0.54596189]
[1761770212822,0.17958718,111420.0,111410.0,0.54696189]
[1761770213034,8.62e-05,111420.0,111410.0,0.54996189]
[1761770213705,0.17958718,111420.0,111410.0,0.54996189]
[1761770213911,0.17958718,111420.0,111410.0,0.54995393]
[1761770217999,8.62e-05,111420.0,111410.0,0.54995393]
[1761770218211,0.17958718,111420.0,111410.0,0.54995393]
[1761770222730,0.17958718,111420.0,111410.0,0.28061783]
[1761770222930,0.56531718,111420.0,111410.0,0.02067783]
[1761770223138,0.58470266,111420.0,111410.0,0.05154783]
[1761770223353,0.63943811,111420.0,111410.0,0.02067783]
[1761770223581,0.59311811,111420.0,111410.0,0.13261783]
[1761770223805,0.56016811,111420.0,111410.0,0.11594]
[1761770224029,0.59311811,111420.0,111410.0,0.06765]
[1761770224721,0.59311811,111420.0,111410.0,0.06665]
[1761770224935,0.56016811,111420.0,111410.0,0.11494]
[1761770225168,0.56016811,111420.0,111410.0,0.11194]
[1761770225578,0.59311811,111420.0,111410.0,0.06365]
[1761770227007,0.17951709,111410.0,111400.0,0.03299718]
[1761770227180,0.17951709,111410.0,111400.0,0.11215718]
[1761770227744,0.23002709,111410.0,111400.0,0.06386718]
[1761770227964,0.21772257,111410.0,111400.0,0.10901718]
[1761770228178,0.19890257,111410.0,111400.0,0.11001718]
[1761770228612,0.19890257,111410.0,111400.0,0.11201718]
[1761770228821,0.17951709,111410.0,111400.0,0.29155039]
[1761770229100,0.17951709,111410.0,111400.0,0.11201718]
[1761770229314,0.52789355,111420.0,111410.0,0.03205]
[1761770229532,0.56800131,111420.0,111410.0,0.06336]
[1761770229752,0.56800131,111420.0,111410.0,0.10851]
[1761770230200,0.53631131,111420.0,111410.0,0.10851]
[1761770230427,0.56800131,111420.0,111410.0,0.06336]
[1761770231087,0.56800131,111420.0,111400.0,0.00021718]
[1761770231088,0.17951709,111410.0,111400.0,0.00021718]
[1761770231302,0.23002709,111410.0,111400.0,0.03152718]
[1761770231555,0.23002709,111410.0,111400.0,0.10872718]
[1761770232003,0.27602709,111410.0,111400.0,0.00021718]
[1761770232236,3.63542202,111410.0,111400.0,0.00121718]
[1761770232456,3.57002709,111410.0,111400.0,0.00121718]
[1761770232662,3.57002709,111410.0,111400.0,0.00321718]
[1761770232876,3.61634709,111410.0,111400.0,0.00321718]
[1761770233532,3.7061661,111410.0,111400.0,0.00321718]
[1761770233745,3.61634709,111410.0,111400.0,0.00321718]
[1761770234592,3.64333784,111410.0,111400.0,0.00321718]
[1761770236772,3.64333784,111410.0,111400.0,0.00221718]
[1761770237432,3.59701784,111410.0,111400.0,0.03494718]
[1761770237645,3.59701784,111410.0,111400.0,0.00221718]
[1761770237885,3.64333784,111410.0,111400.0,0.00221718]
[1761770238514,3.64333784,111410.0,111400.0,0.00021718]
[1761770240695,3.73315685,111410.0,111400.0,0.00021718]
[1761770241116,3.64333784,111410.0,111400.0,0.00021718]
[1761770248341,3.62022135,111410.0,111400.0,0.00021718]
[1761770249454,3.57390135,111410.0,111400.0,0.00021718]
[1761770249655,3.59711135,111410.0,111400.0,0.00021718]
[1761770250650,3.57390135,111410.0,111400.0,0.00021718]
[1761770251079,3.59711135,111410.0,111400.0,0.00021718]
[1761770252476,3.68693036,111410.0,111400.0,0.00021718]
[1761770252714,3.59711135,111410.0,111400.0,0.00021718]
[1761770253915,3.57390135,111410.0,111400.0,0.00021718]
[1761770254601,3.57390135,111410.0,111400.0,0.03294718]
[1761770254803,3.57390135,111410.0,111400.0,0.06432718]
[1761770256318,3.57390135,111410.0,111400.0,0.00021718]
[1761770257135,3.57390135,111410.0,111400.0,0.03294718]
[1761770257768,3.57390135,111410.0,111400.0,0.00021718]
[1761770257977,3.58232432,111410.0,111400.0,0.00021718]
[1761770258177,3.57390135,111410.0,111400.0,0.00021718]
[1761770258383,3.58232491,111410.0,111400.0,0.00021718]
[1761770258585,3.57390135,111410.0,111400.0,0.03155718]
[1761770258786,3.57390135,111410.0,111400.0,0.00021718]
[1761770258991,3.57390135,111410.0,111400.0,0.03155718]
[1761770260271,3.58232676,111410.0,111400.0,0.03155718]
[1761770262573,3.58232676,111410.0,111400.0,0.00021718]
[1761770263035,3.60553676,111410.0,111400.0,0.00021718]
[1761770263658,3.69535577,111410.0,111400.0,0.00021718]
[1761770263862,3.67214577,111410.0,111400.0,0.00021718]
[1761770264473,3.58232676,111410.0,111400.0,0.00021718]
[1761770265292,3.58232676,111410.0,111400.0,0.03155718]
[1761770265431,0.54650784,111410.0,111400.0,0.11288718]
[1761770265850,0.20650784,111410.0,111400.0,0.11288718]
[1761770267122,0.54650784,111410.0,111400.0,0.11288718]
[1761770267984,0.56971784,111410.0,111400.0,0.11288718]
[1761770268390,0.56971784,111410.0,111400.0,0.06301718]
[1761770275346,0.54650784,111410.0,111400.0,0.11288718]
[1761770278844,0.34,111410.0,111400.0,0.11288718]
[1761770279053,0.54650787,111410.0,111400.0,0.11288718]
[1761770281533,0.56971787,111410.0,111400.0,0.06301718]
[1761770282481,0.54650787,111410.0,111400.0,0.06301718]
[1761770282692,0.54650787,111410.0,111400.0,0.11288718]
[1761770282910,0.56971787,111410.0,111400.0,0.03155718]
[1761770283359,0.56971787,111410.0,111400.0,0.00021718]
[1761770284690,0.56971787,111410.0,111400.0,0.03155718]
[1761770285544,0.56971787,111410.0,111400.0,0.06301718]
[1761770285687,0.54650787,111410.0,111400.0,0.11288718]
[1761770285924,0.51951709,111410.0,111400.0,0.29242039]
[1761770286130,0.18271601,111420.0,111400.0,0.79783979]
[1761770286330,0.18271601,111420.0,111410.0,0.29218709]
[1761770286550,0.49572807,111420.0,111410.0,0.11267]
[1761770286756,0.50311807,111420.0,111410.0,0.11267]
[1761770287346,0.49572807,111420.0,111410.0,0.11267]
[1761770291558,0.51893807,111420.0,111410.0,0.11068]
[1761770291763,0.49572807,111420.0,111410.0,0.11068]
[1761770294201,0.51893807,111420.0,111410.0,0.0628]
[1761770294618,0.51893807,111420.0,111400.0,0.07927718]
[1761770294931,0.17951709,111410.0,111400.0,0.07927718]
[1761770295129,0.17951709,111410.0,111400.0,0.22727718]
[1761770295307,0.17951709,111410.0,111400.0,0.25924718]
[1761770296511,0.17951709,111410.0,111400.0,0.26224718]
[1761770299826,0.60737213,111410.0,111400.0,0.00321718]
[1761770300049,0.58416213,111410.0,111400.0,0.03518718]
[1761770300262,0.56025709,111410.0,111400.0,0.03518718]
[1761770301938,0.56025709,111410.0,111400.0,0.11354718]
[1761770302149,0.56025709,111410.0,111400.0,0.06594718]
[1761770310856,0.56025709,111410.0,111400.0,0.11354718]
[1761770310857,0.53704709,111410.0,111400.0,0.11354718]
[1761770312707,0.56025709,111410.0,111400.0,0.06594718]
[1761770313343,0.56025709,111410.0,111400.0,0.11354718]
[1761770314405,0.56025709,111410.0,111400.0,0.06594718]
[1761770314615,0.58800144,111410.0,111400.0,0.06594718]
[1761770315057,0.58800144,111410.0,111400.0,0.00321718]
[1761770315269,3.70103045,111410.0,111400.0,0.00321718]
[1761770315902,3.70103045,111410.0,111400.0,0.00121718]
[1761770316333,3.70103045,111410.0,111400.0,0.00021718]
[1761770316754,3.72042345,111410.0,111400.0,0.00021718]
[1761770317690,3.6926791,111410.0,111400.0,0.00021718]
[1761770317903,3.6694691,111410.0,111400.0,0.03165718]
[1761770318595,3.6926791,111410.0,111400.0,0.00021718]
[1761770319885,3.6926791,111410.0,111400.0,0.03165718]
[1761770319886,3.6694691,111410.0,111400.0,0.03165718]
[1761770320129,3.55644009,111410.0,111400.0,0.10676718]
[1761770320572,3.57965009,111410.0,111400.0,0.06050718]
[1761770320794,3.6694691,111410.0,111400.0,0.00021718]
[1761770321016,3.6926791,111410.0,111400.0,0.00021718]
[1761770321239,3.55644009,111410.0,111400.0,0.10676718]
[1761770321459,0.55644009,111410.0,111400.0,0.10676718]
[1761770322555,0.57965009,111410.0,111400.0,0.10676718]
[1761770326160,0.53891009,111410.0,111400.0,0.10676718]
[1761770327995,0.51951709,111410.0,111400.0,0.28630039]
[1761770328851,0.17951709,111410.0,111400.0,0.28630039]
[1761770333250,0.17951709,111410.0,111400.0,0.43430039]
[1761770333876,0.17512573,111420.0,111400.0,0.5241194]
[1761770334080,0.49572807,111420.0,111410.0,0.10655]
[1761770334317,0.30845245,111440.0,111410.0,0.10655]
[1761770334318,0.02421493,111440.0,111430.0,0.17948487]
[1761770334533,0.01124579,111450.0,111440.0,0.17946877]
[1761770334739,0.01124579,111450.0,111440.0,0.37583778]
[1761770335166,0.01124579,111450.0,111440.0,0.81837822]
[1761770335384,0.01124579,111450.0,111440.0,0.8535605]
[1761770335999,0.01124579,111450.0,111440.0,0.86246724]
[1761770336204,0.01124579,111450.0,111440.0,0.87146724]
[1761770340010,0.01124579,111450.0,111440.0,0.45590037]
[1761770340251,0.01124579,111450.0,111440.0,0.87146724]
[1761770341082,0.01124579,111450.0,111440.0,1.62703411]
[1761770341304,0.01124579,111450.0,111440.0,1.21146724]
[1761770341305,0.01324579,111450.0,111440.0,1.21146724]
[1761770341735,0.01324579,111450.0,111440.0,1.62703411]
[1761770342617,0.01324579,111450.0,111440.0,1.62403411]
[1761770342855,0.18855812,111490.0,111480.0,0.17940437]
[1761770342856,0.18855777,111490.0,111480.0,0.17940437]
[1761770343065,0.19741371,111490.0,111480.0,0.32880338]
[1761770343282,0.19741371,111490.0,111480.0,0.37506338]
[1761770344303,0.19740734,111490.0,111480.0,0.37506338]
[1761770344956,0.19740734,111490.0,111480.0,0.37606338]
[1761770345412,0.19740734,111490.0,111480.0,0.19665901]
[1761770345625,0.19740734,111490.0,111480.0,0.10684]
[1761770346709,0.19740734,111490.0,111480.0,0.10984]
[1761770347962,0.19740734,111490.0,111480.0,0.25784]
[1761770348157,0.22061734,111490.0,111480.0,0.25784]
[1761770348358,0.58382734,111490.0,111480.0,0.152]
[1761770348568,3.60804227,111490.0,111480.0,0.004]
[1761770348769,3.60891008,111490.0,111480.0,0.004]
[1761770348975,3.69872909,111490.0,111480.0,0.004]
[1761770349641,3.67551909,111490.0,111480.0,0.004]
[1761770350309,3.7885481,111490.0,111480.0,0.004]
[1761770350786,3.69872909,111490.0,111480.0,0.003]
[1761770352552,3.67551909,111490.0,111480.0,0.003]
[1761770352736,3.69872909,111490.0,111480.0,0.003]
[1761770352952,3.68773706,111490.0,111480.0,0.003]
[1761770353824,3.69670647,111490.0,111480.0,0.003]
[1761770354732,3.67349647,111490.0,111480.0,0.003]
[1761770355159,3.58367746,111490.0,111480.0,0.06304]
[1761770355401,0.53625253,111490.0,111480.0,0.11113]
[1761770355855,0.55946253,111490.0,111480.0,0.003]
[1761770356078,0.55946253,111490.0,111480.0,0.03476]
[1761770356290,0.53625253,111490.0,111480.0,0.10813]
[1761770356718,0.53625253,111490.0,111480.0,0.11013]
[1761770359204,0.55946253,111490.0,111480.0,0.002]
[1761770359438,0.58360583,111490.0,111480.0,0.03376]
[1761770359652,0.58360583,111490.0,111480.0,0.06204]
[1761770359873,0.56039583,111490.0,111480.0,0.11013]
[1761770360097,3.58360583,111490.0,111480.0,0.06204]
[1761770360333,3.58360583,111490.0,111480.0,0.03376]
[1761770360334,3.61595979,111490.0,111480.0,0.03376]
[1761770361188,3.59181649,111490.0,111480.0,0.03376]
[1761770361412,3.59181649,111490.0,111480.0,0.06204]
[1761770361625,3.64928154,111490.0,111480.0,0.002]
[1761770362924,3.55946253,111490.0,111480.0,0.11013]
[1761770363138,3.53625253,111490.0,111480.0,0.11013]
[1761770363573,3.55946253,111490.0,111480.0,0.11013]
[1761770364210,3.55946253,111490.0,111480.0,0.06204]
[1761770364638,0.53625253,111490.0,111480.0,0.11013]
[1761770371488,0.52922558,111490.0,111480.0,0.25813]
[1761770372114,0.52922558,111490.0,111480.0,0.43753437]
[1761770372331,0.18922558,111490.0,111480.0,0.43753437]
[1761770372537,0.18025609,111490.0,111480.0,0.94292025]
[1761770372762,0.00086781,111490.0,111480.0,0.94292025]
[1761770372973,0.00086781,111490.0,111480.0,0.94092025]
[1761770373411,0.00086781,111490.0,111480.0,0.94492025]
[1761770375181,0.00086781,111490.0,111480.0,0.94692025]
[1761770376220,0.18025609,111490.0,111480.0,0.94692025]
[1761770376449,0.18025609,111490.0,111480.0,0.53135338]
[1761770376885,0.00086781,111490.0,111480.0,0.53135338]
[1761770377303,0.18025609,111490.0,111480.0,0.53135338]
[1761770379065,0.00086781,111490.0,111480.0,0.53135338]
[1761770379727,0.00086781,111490.0,111480.0,0.94692025]
[1761770379939,0.00086781,111490.0,111480.0,0.53135338]
[1761770380154,0.18025609,111490.0,111480.0,0.53135338]
[1761770381017,0.00086781,111490.0,111480.0,0.53135338]
[1761770381425,0.00086781,111490.0,111480.0,0.94692025]
[1761770381644,5.38642515,111500.0,111490.0,0.17938828]
[1761770381877,5.18024115,111500.0,111490.0,1.12930416]
[1761770382089,4.55348323,111500.0,111490.0,1.12930416]
[1761770382302,3.50697592,111500.0,111490.0,1.61025262]
[1761770382503,3.50697592,111500.0,111490.0,1.19468575]
[1761770382714,3.47725661,111500.0,111490.0,1.61025262]
[1761770382934,3.47725661,111500.0,111490.0,1.19468575]
[1761770383151,3.47725661,111500.0,111490.0,1.20068575]
[1761770383570,3.47725661,111500.0,111490.0,1.18068577]
[1761770384226,3.47725661,111500.0,111490.0,1.18268577]
[1761770384439,3.47725661,111500.0,111490.0,0.84268577]
[1761770384859,3.47725661,111500.0,111490.0,0.84173122]
[1761770385394,3.47925661,111500.0,111490.0,0.8417298]
[1761770386016,3.28580907,111500.0,111490.0,0.8417298]
[1761770386218,3.28580907,111500.0,111490.0,0.90865199]
[1761770386622,3.28580907,111500.0,111490.0,0.83253047]
[1761770387052,3.28580907,111500.0,111490.0,0.41791957]
[1761770387254,3.28580907,111500.0,111490.0,0.83253047]
[1761770387255,3.28602596,111500.0,111490.0,0.83253047]
[1761770388997,3.28602596,111500.0,111490.0,1.24714137]
[1761770389178,3.28602596,111500.0,111490.0,0.83253047]
[1761770389568,3.28602596,111500.0,111490.0,1.24714137]
[1761770391656,3.28602596,111500.0,111490.0,1.31497828]
[1761770392537,3.28602596,111500.0,111490.0,1.34193455]
[1761770397262,3.28602596,111500.0,111490.0,1.27409764]
[1761770397892,3.28602596,111500.0,111490.0,1.42209764]
[1761770401837,3.28602596,111500.0,111490.0,1.00748674]
[1761770402168,3.28602596,111500.0,111490.0,0.98053047]
[1761770402945,3.28602596,111500.0,111490.0,1.39514137]
[1761770404413,3.28602596,111500.0,111490.0,0.56591957]
[1761770404619,3.28602596,111500.0,111490.0,1.39514137]